[Event "Early-Titled-Tuesday-Blitz-March-26-2024"]
[Site "Chess.com"]
[Date "2024.03.26"]
[Round "10"]
[White "chess_blitz00"]
[Black "Gurvich_Vitaly"]
[Result "1-0"]
[WhiteElo "2591"]
[BlackElo "2717"]
[TimeControl "180+1"]
[EndTime "9:54:35 PDT"]
[Termination "chess_blitz00 won by checkmate"]

1. g3 {[%clk 0:03:00.5]} 1... d5 {[%clk 0:02:58.6]} 2. Bg2 {[%clk 0:03:01.1]}
2... Nf6 {[%clk 0:02:59]} 3. Nf3 {[%clk 0:02:59.5]} 3... c6 {[%clk 0:02:59.3]}
4. O-O {[%clk 0:03:00.3]} 4... Bf5 {[%clk 0:02:59.4]} 5. d3 {[%clk 0:03:00.6]}
5... e6 {[%clk 0:02:59.7]} 6. Nc3 {[%clk 0:03:01.3]} 6... h6 {[%clk 0:03:00.1]}
7. Re1 {[%clk 0:03:00.8]} 7... Bh7 {[%clk 0:03:00]} 8. Bf4 {[%clk 0:02:51.2]}
8... Bb4 {[%clk 0:02:57.8]} 9. Bd2 {[%clk 0:02:47]} 9... Nbd7 {[%clk 0:02:56.8]}
10. e4 {[%clk 0:02:46.4]} 10... dxe4 {[%clk 0:02:55.8]} 11. Nxe4 {[%clk
0:02:46]} 11... Bxd2 {[%clk 0:02:55.3]} 12. Nfxd2 {[%clk 0:02:36.8]} 12... O-O
{[%clk 0:02:54.6]} 13. Nc3 {[%clk 0:02:26.3]} 13... Qc7 {[%clk 0:02:52.6]} 14.
Qe2 {[%clk 0:02:24.9]} 14... Rad8 {[%clk 0:02:52]} 15. Qe3 {[%clk 0:02:23.8]}
15... Nb6 {[%clk 0:02:50.8]} 16. Nde4 {[%clk 0:02:19.4]} 16... Nfd5 {[%clk
0:02:47.8]} 17. Qc5 {[%clk 0:02:18.1]} 17... Nxc3 {[%clk 0:02:37]} 18. Nxc3
{[%clk 0:02:17.1]} 18... Qd6 {[%clk 0:02:33.8]} 19. Qxd6 {[%clk 0:02:10.3]}
19... Rxd6 {[%clk 0:02:34.7]} 20. Be4 {[%clk 0:02:10.7]} 20... Nd5 {[%clk
0:02:30.7]} 21. Bxh7+ {[%clk 0:01:58.1]} 21... Kxh7 {[%clk 0:02:31.6]} 22. Ne4
{[%clk 0:01:57.5]} 22... Rd7 {[%clk 0:02:31.8]} 23. Nc5 {[%clk 0:01:57.2]} 23...
Rc7 {[%clk 0:02:30.9]} 24. c3 {[%clk 0:01:47.2]} 24... b6 {[%clk 0:02:21.4]} 25.
Na6 {[%clk 0:01:47.5]} 25... Rd7 {[%clk 0:02:21.1]} 26. d4 {[%clk 0:01:45.7]}
26... Rfd8 {[%clk 0:02:20.9]} 27. a3 {[%clk 0:01:44.6]} 27... Kg6 {[%clk
0:02:18.7]} 28. Nb4 {[%clk 0:01:45]} 28... Rc7 {[%clk 0:02:17.2]} 29. Nd3 {[%clk
0:01:37.1]} 29... a5 {[%clk 0:02:15.7]} 30. Rad1 {[%clk 0:01:34.1]} 30... a4
{[%clk 0:02:12.5]} 31. Ne5+ {[%clk 0:01:23.4]} 31... Kf6 {[%clk 0:02:06.5]} 32.
Kg2 {[%clk 0:01:21.6]} 32... b5 {[%clk 0:02:05.7]} 33. Nd3 {[%clk 0:01:20.9]}
33... Nb6 {[%clk 0:02:04.9]} 34. Nc5 {[%clk 0:01:14.1]} 34... Nc4 {[%clk
0:02:02.8]} 35. Re2 {[%clk 0:01:14.3]} 35... Rd5 {[%clk 0:02:01.2]} 36. Rd3
{[%clk 0:01:11.6]} 36... g5 {[%clk 0:01:59.7]} 37. Rf3+ {[%clk 0:01:10.5]} 37...
Kg6 {[%clk 0:01:58.9]} 38. g4 {[%clk 0:01:07.7]} 38... Nd6 {[%clk 0:01:54.5]}
39. Na6 {[%clk 0:00:41]} 39... Rc8 {[%clk 0:01:54.2]} 40. Nb4 {[%clk 0:00:40.2]}
40... Nc4 {[%clk 0:01:54.4]} 41. Nxd5 {[%clk 0:00:40.1]} 41... cxd5 {[%clk
0:01:55.3]} 42. h4 {[%clk 0:00:38.6]} 42... Rc6 {[%clk 0:01:48]} 43. hxg5 {[%clk
0:00:37.6]} 43... hxg5 {[%clk 0:01:48.9]} 44. Rh3 {[%clk 0:00:36.5]} 44... f6
{[%clk 0:01:43.3]} 45. Rh8 {[%clk 0:00:31.5]} 45... e5 {[%clk 0:01:34.8]} 46.
Rb8 {[%clk 0:00:16.4]} 46... e4 {[%clk 0:01:25.3]} 47. Rxb5 {[%clk 0:00:13.6]}
47... Rd6 {[%clk 0:01:25.9]} 48. Rb4 {[%clk 0:00:11.3]} 48... Nb6 {[%clk
0:01:24.9]} 49. f3 {[%clk 0:00:10.2]} 49... f5 {[%clk 0:01:22.9]} 50. gxf5+
{[%clk 0:00:09]} 50... Kxf5 {[%clk 0:01:23.8]} 51. fxe4+ {[%clk 0:00:08.3]}
51... dxe4 {[%clk 0:01:24.7]} 52. Rb5+ {[%clk 0:00:04.8]} 52... Kf4 {[%clk
0:01:24.3]} 53. Re5 {[%clk 0:00:03.9]} 53... Kg4 {[%clk 0:01:21.5]} 54. R2xe4+
{[%clk 0:00:03.7]} 54... Kh5 {[%clk 0:01:21]} 55. Re3 {[%clk 0:00:04.3]} 55...
Nc4 {[%clk 0:01:18.1]} 56. Rh3+ {[%clk 0:00:05]} 56... Kg4 {[%clk 0:01:17.6]}
57. Rg3+ {[%clk 0:00:04.8]} 57... Kf4 {[%clk 0:01:15.2]} 58. Rexg5 {[%clk
0:00:03.8]} 58... Rh6 {[%clk 0:01:13]} 59. R5g4+ {[%clk 0:00:03.4]} 59... Kf5
{[%clk 0:01:13.3]} 60. Rg8 {[%clk 0:00:02.6]} 60... Nxb2 {[%clk 0:01:06.8]} 61.
Rf3+ {[%clk 0:00:02.8]} 61... Ke4 {[%clk 0:01:06.4]} 62. Re8+ {[%clk 0:00:03.1]}
62... Kd5 {[%clk 0:01:06.3]} 63. Re5+ {[%clk 0:00:03]} 63... Kc4 {[%clk
0:01:06.8]} 64. Rc5+ {[%clk 0:00:03.3]} 64... Kb3 {[%clk 0:01:06.1]} 65. c4+
{[%clk 0:00:03.8]} 65... Ka2 {[%clk 0:01:05.1]} 66. d5 {[%clk 0:00:04.3]} 66...
Rg6+ {[%clk 0:01:04.8]} 67. Kf1 {[%clk 0:00:03.8]} 67... Rg4 {[%clk 0:01:02.7]}
68. Rc6 {[%clk 0:00:04]} 68... Rd4 {[%clk 0:01:02.5]} 69. d6 {[%clk 0:00:04]}
69... Nxc4 {[%clk 0:01:02]} 70. Rxc4 {[%clk 0:00:04.3]} 70... Rxc4 {[%clk
0:01:02]} 71. Rd3 {[%clk 0:00:05]} 71... Rc8 {[%clk 0:00:57.8]} 72. d7 {[%clk
0:00:05.5]} 72... Rd8 {[%clk 0:00:58]} 73. Ke2 {[%clk 0:00:06.2]} 73... Kb2
{[%clk 0:00:58.9]} 74. Ke3 {[%clk 0:00:06.8]} 74... Kc2 {[%clk 0:00:59.5]} 75.
Ke4 {[%clk 0:00:06.5]} 75... Kb2 {[%clk 0:00:59.1]} 76. Ke5 {[%clk 0:00:06.4]}
76... Ka2 {[%clk 0:00:52.5]} 77. Ke6 {[%clk 0:00:05.9]} 77... Kb2 {[%clk
0:00:53.1]} 78. Ke7 {[%clk 0:00:06.2]} 78... Rb8 {[%clk 0:00:47.3]} 79. d8=Q
{[%clk 0:00:05.5]} 79... Rb3 {[%clk 0:00:46.5]} 80. Qd4+ {[%clk 0:00:05]} 80...
Ka2 {[%clk 0:00:46.7]} 81. Rd2+ {[%clk 0:00:05.5]} 81... Kxa3 {[%clk 0:00:46.8]}
82. Qa1+ {[%clk 0:00:05.8]} 82... Kb4 {[%clk 0:00:47]} 83. Rd4+ {[%clk
0:00:06.1]} 83... Kc5 {[%clk 0:00:46.8]} 84. Qxa4 {[%clk 0:00:06.5]} 84... Rb7+
{[%clk 0:00:47]} 85. Rd7 {[%clk 0:00:06.3]} 85... Rb8 {[%clk 0:00:46.4]} 86.
Qa5+ {[%clk 0:00:05.9]} 86... Kc4 {[%clk 0:00:46.6]} 87. Qc7+ {[%clk 0:00:06.5]}
87... Kb3 {[%clk 0:00:46.8]} 88. Qxb8+ {[%clk 0:00:07.4]} 88... Kc2 {[%clk
0:00:47.7]} 89. Rc7+ {[%clk 0:00:07.9]} 89... Kd2 {[%clk 0:00:46.6]} 90. Qb2+
{[%clk 0:00:08.4]} 90... Kd1 {[%clk 0:00:46.8]} 91. Rc1# {[%clk 0:00:08.8]} 1-0

[Event "Early-Titled-Tuesday-Blitz-March-26-2024"]
[Site "Chess.com"]
[Date "2024.03.26"]
[Round "10"]
[White "orkinyo12345"]
[Black "KVAIDAN"]
[Result "1-0"]
[WhiteElo "2529"]
[BlackElo "2345"]
[TimeControl "180+1"]
[EndTime "9:54:37 PDT"]
[Termination "orkinyo12345 won by resignation"]

1. d4 {[%clk 0:03:00.9]} 1... e6 {[%clk 0:02:08.8]} 2. c4 {[%clk 0:02:46.7]}
2... f5 {[%clk 0:02:07.7]} 3. g3 {[%clk 0:02:23.9]} 3... Nf6 {[%clk 0:02:07.1]}
4. Bg2 {[%clk 0:02:19.8]} 4... Be7 {[%clk 0:02:06.2]} 5. Nf3 {[%clk 0:02:18.1]}
5... O-O {[%clk 0:02:06.5]} 6. O-O {[%clk 0:02:19]} 6... d6 {[%clk 0:02:05.9]}
7. Nc3 {[%clk 0:02:16.1]} 7... a5 {[%clk 0:02:06.1]} 8. Qc2 {[%clk 0:02:14.1]}
8... Nc6 {[%clk 0:02:04.5]} 9. e4 {[%clk 0:02:13.1]} 9... Nb4 {[%clk 0:02:03.3]}
10. Qe2 {[%clk 0:02:12.7]} 10... fxe4 {[%clk 0:02:03.9]} 11. Nxe4 {[%clk
0:02:13.6]} 11... Nxe4 {[%clk 0:02:03.4]} 12. Qxe4 {[%clk 0:02:14.5]} 12... e5
{[%clk 0:02:03.9]} 13. dxe5 {[%clk 0:02:13.5]} 13... Bf5 {[%clk 0:02:03.4]} 14.
Qxb7 {[%clk 0:01:59.5]} 14... Rb8 {[%clk 0:02:03.5]} 15. Qa7 {[%clk 0:01:56.2]}
15... Be4 {[%clk 0:02:03.7]} 16. Qe3 {[%clk 0:01:47.1]} 16... Bxf3 {[%clk
0:01:59]} 17. Bxf3 {[%clk 0:01:46.9]} 17... Nc2 {[%clk 0:01:59.5]} 18. Bd5+
{[%clk 0:01:47.1]} 18... Kh8 {[%clk 0:01:59.3]} 19. Qc3 {[%clk 0:01:22.3]} 19...
Nxa1 {[%clk 0:01:58.6]} 20. b3 {[%clk 0:01:20.7]} 20... a4 {[%clk 0:01:48.7]}
21. b4 {[%clk 0:00:59]} 21... dxe5 {[%clk 0:01:34.1]} 22. b5 {[%clk 0:00:57.5]}
22... Bc5 {[%clk 0:01:11.7]} 23. Qxa1 {[%clk 0:00:51.9]} 23... Bd4 {[%clk
0:01:09.2]} 24. Bb2 {[%clk 0:00:51.2]} 24... Qf6 {[%clk 0:01:07.9]} 25. Bxd4
{[%clk 0:00:46.8]} 25... exd4 {[%clk 0:01:07.8]} 26. Qd1 {[%clk 0:00:44.5]}
26... a3 {[%clk 0:01:07.5]} 27. Qd3 {[%clk 0:00:42.8]} 27... Qf5 {[%clk
0:01:00]} 28. Be4 {[%clk 0:00:42.3]} 28... Qc5 {[%clk 0:00:49.7]} 29. Bxh7
{[%clk 0:00:42.2]} 29... Rbe8 {[%clk 0:00:49.4]} 30. Be4 {[%clk 0:00:41.3]}
30... Re5 {[%clk 0:00:42.8]} 31. Kg2 {[%clk 0:00:38.2]} 31... Qe7 {[%clk
0:00:37.6]} 32. f3 {[%clk 0:00:37]} 32... Rd8 {[%clk 0:00:32.1]} 33. Rb1 {[%clk
0:00:32.3]} 33... Rc5 {[%clk 0:00:26.9]} 34. Qxa3 {[%clk 0:00:22.4]} 34... d3
{[%clk 0:00:25.5]} 35. Rd1 {[%clk 0:00:21.8]} 35... d2 {[%clk 0:00:24.6]} 36.
Qb4 {[%clk 0:00:21.2]} 36... Qd6 {[%clk 0:00:24.2]} 37. a3 {[%clk 0:00:16.6]}
37... Qd4 {[%clk 0:00:22.5]} 38. Bd5 {[%clk 0:00:16.8]} 38... Qe3 {[%clk
0:00:17.1]} 39. Qxd2 {[%clk 0:00:16.7]} 39... Qxd2+ {[%clk 0:00:15.2]} 40. Rxd2
{[%clk 0:00:17.6]} 40... Rxc4 {[%clk 0:00:15.8]} 41. Bxc4 {[%clk 0:00:11.2]}
41... Rxd2+ {[%clk 0:00:15]} 42. Kh3 {[%clk 0:00:10.7]} 42... Rd4 {[%clk
0:00:14.6]} 43. Be6 {[%clk 0:00:08.3]} 43... Ra4 {[%clk 0:00:14.6]} 44. Bd7
{[%clk 0:00:07.7]} 44... Rxa3 {[%clk 0:00:14.9]} 45. f4 {[%clk 0:00:06.4]} 45...
Rd3 {[%clk 0:00:15.4]} 46. Bc6 {[%clk 0:00:04.7]} 46... Rd2 {[%clk 0:00:15.9]}
47. g4 {[%clk 0:00:05]} 47... g6 {[%clk 0:00:16.3]} 48. Kg3 {[%clk 0:00:05.3]}
48... Kg7 {[%clk 0:00:16.5]} 49. h3 {[%clk 0:00:05]} 49... Kf6 {[%clk
0:00:16.9]} 50. Be4 {[%clk 0:00:03.9]} 50... Rb2 {[%clk 0:00:16.6]} 51. g5+
{[%clk 0:00:03.9]} 51... Ke6 {[%clk 0:00:16.2]} 52. Bxg6 {[%clk 0:00:03.5]}
52... Rxb5 {[%clk 0:00:15.6]} 53. f5+ {[%clk 0:00:03.8]} 53... Ke7 {[%clk
0:00:15.1]} 54. Kg4 {[%clk 0:00:02.8]} 54... Rb4+ {[%clk 0:00:15.3]} 55. Kh5
{[%clk 0:00:03.2]} 55... Rb3 {[%clk 0:00:15.8]} 56. h4 {[%clk 0:00:03.5]} 56...
c5 {[%clk 0:00:16.3]} 57. Kh6 {[%clk 0:00:03.9]} 57... Rf3 {[%clk 0:00:16.1]}
58. Kg7 {[%clk 0:00:03.8]} 58... c4 {[%clk 0:00:16.5]} 59. f6+ {[%clk
0:00:04.7]} 59... Ke6 {[%clk 0:00:11.3]} 60. h5 {[%clk 0:00:05.3]} 60... c3
{[%clk 0:00:11.4]} 61. h6 {[%clk 0:00:05.6]} 61... Rf5 {[%clk 0:00:08.3]} 62.
Bxf5+ {[%clk 0:00:05.3]} 62... Kxf5 {[%clk 0:00:08]} 63. f7 {[%clk 0:00:06.2]}
63... c2 {[%clk 0:00:08.7]} 64. f8=Q+ {[%clk 0:00:07.1]} 64... Kxg5 {[%clk
0:00:09.2]} 65. Qf1 {[%clk 0:00:07.4]} 65... Kh5 {[%clk 0:00:08.8]} 66. Qc1
{[%clk 0:00:07.4]} 66... Kg4 {[%clk 0:00:07.6]} 67. Qxc2 {[%clk 0:00:08.3]}
67... Kg5 {[%clk 0:00:07]} 68. Qg6+ {[%clk 0:00:09.2]} 68... Kf4 {[%clk
0:00:06.5]} 69. h7 {[%clk 0:00:09.4]} 1-0

[Event "Early-Titled-Tuesday-Blitz-March-26-2024"]
[Site "Chess.com"]
[Date "2024.03.26"]
[Round "10"]
[White "Tolya2"]
[Black "RianKapriaga"]
[Result "0-1"]
[WhiteElo "2475"]
[BlackElo "2362"]
[TimeControl "180+1"]
[EndTime "9:54:38 PDT"]
[Termination "RianKapriaga won by resignation"]

1. Nf3 {[%clk 0:03:00.9]} 1... Nf6 {[%clk 0:02:58.9]} 2. c4 {[%clk 0:02:59.7]}
2... e6 {[%clk 0:02:58.4]} 3. g3 {[%clk 0:02:59]} 3... d5 {[%clk 0:02:58.1]} 4.
Bg2 {[%clk 0:02:59.1]} 4... c5 {[%clk 0:02:55.2]} 5. cxd5 {[%clk 0:02:58]} 5...
exd5 {[%clk 0:02:53.5]} 6. d4 {[%clk 0:02:57.8]} 6... Nc6 {[%clk 0:02:49.9]} 7.
O-O {[%clk 0:02:57.5]} 7... Bg4 {[%clk 0:02:42.2]} 8. Qa4 {[%clk 0:02:48.8]}
8... Qd7 {[%clk 0:02:29.4]} 9. e3 {[%clk 0:02:35.5]} 9... Be7 {[%clk 0:02:24.9]}
10. Nc3 {[%clk 0:02:34.3]} 10... O-O {[%clk 0:02:23.1]} 11. dxc5 {[%clk
0:02:34.1]} 11... Bxc5 {[%clk 0:02:20.6]} 12. b3 {[%clk 0:02:27.8]} 12... Rad8
{[%clk 0:02:02.4]} 13. Ba3 {[%clk 0:02:19.8]} 13... Bxa3 {[%clk 0:01:51.8]} 14.
Qxa3 {[%clk 0:02:19.4]} 14... Bh3 {[%clk 0:01:31.4]} 15. Rfd1 {[%clk 0:02:12.9]}
15... Bxg2 {[%clk 0:01:30.1]} 16. Kxg2 {[%clk 0:02:13]} 16... Qg4 {[%clk
0:01:23.1]} 17. h3 {[%clk 0:02:09.6]} 17... Qh5 {[%clk 0:01:19.6]} 18. Nd4
{[%clk 0:02:03.5]} 18... Ne4 {[%clk 0:00:54.8]} 19. Nce2 {[%clk 0:01:44.5]}
19... Rd6 {[%clk 0:00:33.2]} 20. Nf4 {[%clk 0:01:39.6]} 20... Qe5 {[%clk
0:00:22.6]} 21. Nxc6 {[%clk 0:01:32.8]} 21... Rxc6 {[%clk 0:00:17.2]} 22. Rxd5
{[%clk 0:01:28]} 22... Qxa1 {[%clk 0:00:16.2]} 23. Qxa7 {[%clk 0:01:24.2]} 23...
Rc2 {[%clk 0:00:14]} 24. Nd3 {[%clk 0:01:22]} 24... Qxa2 {[%clk 0:00:12.2]} 25.
Qxa2 {[%clk 0:01:18.9]} 25... Rxa2 {[%clk 0:00:13.1]} 26. Kf3 {[%clk 0:01:14.9]}
26... Nd2+ {[%clk 0:00:13.1]} 27. Kg2 {[%clk 0:01:11.4]} 27... Nxb3 {[%clk
0:00:13.4]} 28. Rb5 {[%clk 0:01:11.7]} 28... Na5 {[%clk 0:00:13.9]} 29. Nb4
{[%clk 0:01:09.7]} 29... Ra4 {[%clk 0:00:12]} 30. Nd5 {[%clk 0:01:08.9]} 30...
h6 {[%clk 0:00:11.2]} 31. g4 {[%clk 0:01:08]} 31... Kh7 {[%clk 0:00:09.8]} 32.
Nc3 {[%clk 0:01:07.2]} 32... Ra1 {[%clk 0:00:08.6]} 33. Ne4 {[%clk 0:01:04.9]}
33... f6 {[%clk 0:00:07.8]} 34. Nd6 {[%clk 0:01:04.1]} 34... Rd8 {[%clk
0:00:07]} 35. Nf5 {[%clk 0:01:03.6]} 35... Rd7 {[%clk 0:00:05.9]} 36. h4 {[%clk
0:01:00.6]} 36... Ra2 {[%clk 0:00:06]} 37. h5 {[%clk 0:01:00.1]} 37... Rdd2
{[%clk 0:00:05.2]} 38. Rc5 {[%clk 0:00:59.7]} 38... Rxf2+ {[%clk 0:00:04.8]} 39.
Kg3 {[%clk 0:01:00]} 39... Rg2+ {[%clk 0:00:04.3]} 40. Kf3 {[%clk 0:00:58.5]}
40... Rgf2+ {[%clk 0:00:04.4]} 41. Kg3 {[%clk 0:00:58.4]} 41... Rxf5 {[%clk
0:00:05.3]} 42. Rxf5 {[%clk 0:00:56.1]} 42... b6 {[%clk 0:00:04.9]} 43. Rb5
{[%clk 0:00:55.6]} 43... Nc4 {[%clk 0:00:05.3]} 44. Rb4 {[%clk 0:00:55.7]} 44...
Rc2 {[%clk 0:00:05.7]} 45. Kf4 {[%clk 0:00:54.5]} 45... Kg8 {[%clk 0:00:05.4]}
46. Rb5 {[%clk 0:00:52.9]} 46... Kf7 {[%clk 0:00:06.3]} 47. Rd5 {[%clk
0:00:52.5]} 47... Rc3 {[%clk 0:00:05.9]} 48. Rd7+ {[%clk 0:00:51.7]} 48... Kf8
{[%clk 0:00:06.2]} 49. Rc7 {[%clk 0:00:49.8]} 49... b5 {[%clk 0:00:04.4]} 50.
Rb7 {[%clk 0:00:47.8]} 50... Rxe3 {[%clk 0:00:03.4]} 51. Rxb5 {[%clk 0:00:46.5]}
51... Rc3 {[%clk 0:00:03.9]} 52. Rc5 {[%clk 0:00:45.1]} 52... Kg8 {[%clk
0:00:03.8]} 53. Rc8+ {[%clk 0:00:44.1]} 53... Kh7 {[%clk 0:00:03.3]} 54. Rc7
{[%clk 0:00:43.9]} 54... Rc2 {[%clk 0:00:03.3]} 55. Ra7 {[%clk 0:00:42.9]} 55...
Ne5 {[%clk 0:00:02.6]} 56. Ra4 {[%clk 0:00:41.3]} 56... Rc4+ {[%clk 0:00:03.5]}
57. Rxc4 {[%clk 0:00:40.5]} 57... Nxc4 {[%clk 0:00:04.4]} 58. Kf5 {[%clk
0:00:40.5]} 58... Ne5 {[%clk 0:00:05.3]} 59. Kf4 {[%clk 0:00:38.8]} 59... Kg8
{[%clk 0:00:05.7]} 60. Kf5 {[%clk 0:00:39]} 60... Kf7 {[%clk 0:00:06.6]} 61. Kf4
{[%clk 0:00:38.8]} 61... Ke6 {[%clk 0:00:07.5]} 62. Kg3 {[%clk 0:00:38.7]} 62...
Nxg4 {[%clk 0:00:06.9]} 63. Kxg4 {[%clk 0:00:38.7]} 63... f5+ {[%clk 0:00:07.8]}
64. Kf4 {[%clk 0:00:38.7]} 64... Kf6 {[%clk 0:00:08.7]} 65. Kf3 {[%clk
0:00:38.5]} 65... Kg5 {[%clk 0:00:09.5]} 66. Kg3 {[%clk 0:00:39.4]} 66... Kxh5
{[%clk 0:00:10.1]} 67. Kf4 {[%clk 0:00:40.3]} 67... Kg6 {[%clk 0:00:11]} 68. Kg3
{[%clk 0:00:40.3]} 68... Kf6 {[%clk 0:00:11.9]} 69. Kf4 {[%clk 0:00:40.4]} 69...
g5+ {[%clk 0:00:12.8]} 70. Kf3 {[%clk 0:00:40.9]} 70... Kg6 {[%clk 0:00:13.5]}
71. Kg3 {[%clk 0:00:41.1]} 71... h5 {[%clk 0:00:14.4]} 72. Kh3 {[%clk
0:00:40.3]} 72... h4 {[%clk 0:00:15.3]} 73. Kg2 {[%clk 0:00:40.3]} 73... Kh5
{[%clk 0:00:15.6]} 74. Kf3 {[%clk 0:00:40.4]} 74... g4+ {[%clk 0:00:16.5]} 75.
Kf4 {[%clk 0:00:41]} 75... h3 {[%clk 0:00:15.9]} 76. Kg3 {[%clk 0:00:40.9]}
76... Kg5 {[%clk 0:00:16.8]} 77. Kh2 {[%clk 0:00:40.5]} 77... f4 {[%clk
0:00:17.7]} 78. Kg1 {[%clk 0:00:40.5]} 78... Kf5 {[%clk 0:00:18.6]} 79. Kf2
{[%clk 0:00:40.4]} 79... Ke4 {[%clk 0:00:19.5]} 80. Ke2 {[%clk 0:00:40.3]} 80...
g3 {[%clk 0:00:18.8]} 0-1

[Event "Early-Titled-Tuesday-Blitz-March-26-2024"]
[Site "Chess.com"]
[Date "2024.03.26"]
[Round "10"]
[White "JosefineHeinemann"]
[Black "jcmesafischer"]
[Result "0-1"]
[WhiteElo "2493"]
[BlackElo "2383"]
[TimeControl "180+1"]
[EndTime "9:54:40 PDT"]
[Termination "jcmesafischer won by resignation"]

1. e4 {[%clk 0:03:00.9]} 1... c5 {[%clk 0:02:55]} 2. c3 {[%clk 0:03:00.1]} 2...
d5 {[%clk 0:02:52.5]} 3. exd5 {[%clk 0:02:59.8]} 3... Nf6 {[%clk 0:02:52.5]} 4.
Bb5+ {[%clk 0:02:58.4]} 4... Nbd7 {[%clk 0:02:51.5]} 5. d4 {[%clk 0:02:56.8]}
5... cxd4 {[%clk 0:02:41.4]} 6. Qxd4 {[%clk 0:02:56.1]} 6... a6 {[%clk
0:02:41.4]} 7. Be2 {[%clk 0:02:54.9]} 7... Qa5 {[%clk 0:02:36.4]} 8. d6 {[%clk
0:02:43.9]} 8... e5 {[%clk 0:02:32.1]} 9. Qd1 {[%clk 0:02:41.5]} 9... Qb6 {[%clk
0:02:31]} 10. Nd2 {[%clk 0:02:39.2]} 10... Qxd6 {[%clk 0:02:06.4]} 11. Ngf3
{[%clk 0:02:38.4]} 11... Be7 {[%clk 0:02:05.3]} 12. O-O {[%clk 0:02:37.7]} 12...
O-O {[%clk 0:02:03.9]} 13. Nc4 {[%clk 0:02:35.8]} 13... Qc7 {[%clk 0:02:03.3]}
14. Bg5 {[%clk 0:02:33.3]} 14... b5 {[%clk 0:02:01.8]} 15. Bxf6 {[%clk
0:02:24.7]} 15... Bxf6 {[%clk 0:02:02.2]} 16. Nd6 {[%clk 0:02:24.2]} 16... Nc5
{[%clk 0:01:51.7]} 17. Nxc8 {[%clk 0:02:23.6]} 17... Raxc8 {[%clk 0:01:52.6]}
18. Qc2 {[%clk 0:02:13]} 18... e4 {[%clk 0:01:51.1]} 19. Nd2 {[%clk 0:02:11.8]}
19... e3 {[%clk 0:01:42.2]} 20. fxe3 {[%clk 0:02:09.5]} 20... Bg5 {[%clk
0:01:29.2]} 21. Rf3 {[%clk 0:02:07.6]} 21... Rce8 {[%clk 0:01:27.1]} 22. Nf1
{[%clk 0:02:07.1]} 22... Nd7 {[%clk 0:01:18.6]} 23. Bd3 {[%clk 0:02:00.2]} 23...
g6 {[%clk 0:01:18.1]} 24. Rg3 {[%clk 0:01:52.7]} 24... Bh4 {[%clk 0:01:10.1]}
25. Rh3 {[%clk 0:01:52.4]} 25... Bg5 {[%clk 0:01:06.5]} 26. a4 {[%clk 0:01:50]}
26... Qc5 {[%clk 0:00:59.8]} 27. axb5 {[%clk 0:01:31.2]} 27... axb5 {[%clk
0:01:00.7]} 28. Re1 {[%clk 0:01:30]} 28... Ne5 {[%clk 0:00:53.1]} 29. Kh1 {[%clk
0:01:16.5]} 29... Rd8 {[%clk 0:00:45.7]} 30. Be4 {[%clk 0:00:55.3]} 30... f5
{[%clk 0:00:43]} 31. Bf3 {[%clk 0:00:55.6]} 31... Rd7 {[%clk 0:00:36]} 32. e4
{[%clk 0:00:53.2]} 32... Nd3 {[%clk 0:00:27.5]} 33. Re2 {[%clk 0:00:49.5]} 33...
fxe4 {[%clk 0:00:26.1]} 34. b4 {[%clk 0:00:39.6]} 34... Qb6 {[%clk 0:00:11.6]}
35. Nd2 {[%clk 0:00:28.7]} 35... exf3 {[%clk 0:00:10.1]} 36. Nxf3 {[%clk
0:00:28.6]} 36... Nf4 {[%clk 0:00:09.4]} 37. Nxg5 {[%clk 0:00:22.7]} 37... Nxe2
{[%clk 0:00:09.6]} 38. Qxe2 {[%clk 0:00:22.3]} 38... Qf6 {[%clk 0:00:09.8]} 39.
Qa2+ {[%clk 0:00:18.8]} 39... Rdf7 {[%clk 0:00:06.7]} 40. Nf3 {[%clk 0:00:12.9]}
40... Re8 {[%clk 0:00:06.3]} 41. Kg1 {[%clk 0:00:11.1]} 41... Qb6+ {[%clk
0:00:05.1]} 42. Kf1 {[%clk 0:00:10]} 42... Qd6 {[%clk 0:00:03.6]} 43. Qc2 {[%clk
0:00:09.2]} 43... Qc6 {[%clk 0:00:02.7]} 44. Rg3 {[%clk 0:00:08.2]} 44... Qc4+
{[%clk 0:00:02.9]} 45. Kg1 {[%clk 0:00:08.3]} 45... Qe4 {[%clk 0:00:02.4]} 46.
Qxe4 {[%clk 0:00:07.5]} 46... Rxe4 {[%clk 0:00:03.3]} 47. Rg5 {[%clk 0:00:06.1]}
47... Re3 {[%clk 0:00:03.6]} 48. Rxb5 {[%clk 0:00:05.9]} 48... Rxc3 {[%clk
0:00:04.2]} 49. Kf2 {[%clk 0:00:06.6]} 49... Rc2+ {[%clk 0:00:04.2]} 50. Kg3
{[%clk 0:00:07.1]} 50... Rb2 {[%clk 0:00:03.8]} 51. Rb8+ {[%clk 0:00:07]} 51...
Rf8 {[%clk 0:00:03.6]} 52. b5 {[%clk 0:00:07.9]} 52... Rxb8 {[%clk 0:00:03.5]}
53. Nd4 {[%clk 0:00:08.4]} 53... Rb3+ {[%clk 0:00:04.2]} 54. Nxb3 {[%clk
0:00:08.4]} 54... Rxb5 {[%clk 0:00:04.9]} 55. Nd4 {[%clk 0:00:09.3]} 55... Rb4
{[%clk 0:00:05.2]} 56. Nf3 {[%clk 0:00:09.6]} 56... Rc4 {[%clk 0:00:05.4]} 57.
h3 {[%clk 0:00:09.6]} 57... Kg7 {[%clk 0:00:06]} 58. Ne5 {[%clk 0:00:10]} 58...
Rc3+ {[%clk 0:00:06.1]} 59. Nf3 {[%clk 0:00:10.3]} 59... g5 {[%clk 0:00:06]} 60.
Kg4 {[%clk 0:00:10.6]} 60... h6 {[%clk 0:00:05.6]} 61. Kf5 {[%clk 0:00:10.5]}
61... Rc4 {[%clk 0:00:05.8]} 62. Ne5 {[%clk 0:00:10.3]} 62... Rf4+ {[%clk
0:00:06]} 63. Ke6 {[%clk 0:00:10.2]} 63... Rf2 {[%clk 0:00:06.1]} 64. g4 {[%clk
0:00:10]} 64... Rh2 {[%clk 0:00:05.6]} 65. Nf3 {[%clk 0:00:09.1]} 65... Rxh3
{[%clk 0:00:05.8]} 66. Nd4 {[%clk 0:00:10]} 66... Re3+ {[%clk 0:00:05.7]} 67.
Kf5 {[%clk 0:00:09.3]} 67... Rd3 {[%clk 0:00:05.5]} 68. Ne6+ {[%clk 0:00:09.3]}
68... Kh7 {[%clk 0:00:06.1]} 69. Nf8+ {[%clk 0:00:09.3]} 69... Kg8 {[%clk
0:00:06.5]} 70. Ne6 {[%clk 0:00:10.2]} 70... Rf3+ {[%clk 0:00:06.8]} 71. Ke5
{[%clk 0:00:10.4]} 71... Kh7 {[%clk 0:00:06.1]} 72. Kd6 {[%clk 0:00:09.7]} 72...
Rf6 {[%clk 0:00:06.1]} 73. Ke7 {[%clk 0:00:09.9]} 73... Rxe6+ {[%clk 0:00:05.4]}
74. Kxe6 {[%clk 0:00:10.3]} 74... Kg6 {[%clk 0:00:06.3]} 75. Ke5 {[%clk
0:00:10.5]} 75... h5 {[%clk 0:00:07.2]} 76. gxh5+ {[%clk 0:00:09.8]} 76... Kxh5
{[%clk 0:00:08.1]} 77. Ke4 {[%clk 0:00:10.4]} 77... Kg4 {[%clk 0:00:08.3]} 78.
Ke3 {[%clk 0:00:10.3]} 78... Kh3 {[%clk 0:00:08.7]} 0-1